fUST/lending_fUST_20240501
["ID","MTS","AMOUNT","RATE_DAILY","PERIOD"]
[325053402,1714509055468,-500.0,0.00034519,7]
[325053404,1714509055477,-500.0,0.00034519,7]
[325053406,1714509055486,-569.25,0.00034519,7]
[325053408,1714509055495,-500.0,0.00034519,7]
[325053410,1714509055504,-500.0,0.00034519,7]
[325053412,1714509055514,-971.02,0.00034519,7]
[325053414,1714509055523,-500.0,0.00034519,7]
[325053416,1714509055532,-500.0,0.00034519,7]
[325053418,1714509055541,-500.0,0.00034519,7]
[325053420,1714509055551,-500.0,0.00034519,7]
[325053423,1714509055562,-500.0,0.00034519,7]
[325053425,1714509055571,-509.09,0.0003452,7]
[325053427,1714509055581,-649.26783727,0.0003452,7]
[325053428,1714509055590,-500.0,0.0003452,7]
[325053431,1714509055599,-500.0,0.0003452,7]
[325053432,1714509055609,-500.0,0.0003452,7]
[325053434,1714509055618,-500.0,0.0003452,7]
[325053436,1714509055628,-600.49,0.0003452,7]
[325053438,1714509055637,-541.66,0.0003452,7]
[325053440,1714509055647,-542.53,0.0003452,7]
[325053442,1714509055657,-500.0,0.0003452,7]
[325053444,1714509055666,-500.0,0.0003452,7]
[325053446,1714509055675,-567.94,0.0003452,7]
[325053448,1714509055684,-412.77310722,0.0003452,7]
[325053451,1714509055694,-500.0,0.0003452,7]
[325053453,1714509055704,-210.38456144,0.0003452,7]
[325053455,1714509055713,-611.23,0.0003452,7]
[325053457,1714509055723,-500.0,0.0003452,7]
[325053459,1714509055733,-500.0,0.0003452,7]
[325053460,1714509055742,-500.0,0.0003452,7]
[325053462,1714509055752,-500.0,0.0003452,7]
[325053464,1714509055761,-500.0,0.0003452,7]
[325053466,1714509055771,-500.0,0.0003452,7]
[325053468,1714509055780,-500.0,0.0003452,7]
[325053471,1714509055789,-500.0,0.0003452,7]
[325053473,1714509055799,-500.0,0.0003452,7]
[325053475,1714509055809,-576.73,0.0003452,7]
[325053476,1714509055818,-542.59,0.0003452,7]
[325053479,1714509055827,-500.0,0.0003452,7]
[325053481,1714509055837,-635.68,0.0003452,7]
[325053483,1714509055847,-500.0,0.0003452,7]
[325053485,1714509055857,-500.0,0.0003452,7]
[325053486,1714509055866,-500.0,0.0003452,7]
[325053489,1714509055875,-500.0,0.0003452,7]
[325053490,1714509055884,-500.0,0.0003452,7]
[325053492,1714509055894,-280.99450938,0.0003452,7]
[325053494,1714509055907,-500.0,0.0003452,7]
[325053496,1714509055917,-500.0,0.0003452,7]
[325053498,1714509055927,-500.0,0.0003452,7]
[325053500,1714509055936,-500.0,0.0003452,7]
[325053502,1714509055946,-500.0,0.0003452,7]
[325053504,1714509055956,-855.49,0.0003452,7]
[325053506,1714509055965,-500.0,0.0003452,7]
[325053508,1714509055974,-500.0,0.0003452,7]
[325053510,1714509055983,-512.19,0.0003452,7]
[325053512,1714509055993,-500.0,0.0003452,7]
[325053514,1714509056003,-500.0,0.0003452,7]
[325053516,1714509056014,-500.0,0.0003452,7]
[325053519,1714509056024,-589.1,0.0003452,7]
[325053521,1714509056035,-500.0,0.0003452,7]
[325053522,1714509056046,-500.0,0.0003452,7]
[325053524,1714509056056,-652.83,0.0003452,7]
[325053526,1714509056065,-500.0,0.0003452,7]
[325053529,1714509056074,-500.0,0.0003452,7]
[325053530,1714509056083,-557.78,0.0003452,7]
[325053532,1714509056092,-500.0,0.0003452,7]
[325053534,1714509056101,-502.04,0.0003452,7]
[325053536,1714509056110,-500.0,0.0003452,7]
[325053538,1714509056120,-500.0,0.0003452,7]
[325053540,1714509056129,-541.66,0.0003452,7]
[325053542,1714509056139,-500.0,0.0003452,7]
[325053544,1714509056148,-500.0,0.0003452,7]
[325053546,1714509056160,-500.0,0.0003452,7]
[325053548,1714509056169,-500.0,0.0003452,7]
[325053550,1714509056178,-500.0,0.0003452,7]
[325053552,1714509056188,-425.27009862,0.0003452,7]
[325053554,1714509056197,-1568.09,0.0003452,7]
[325053556,1714509056207,-500.0,0.0003452,7]
[325053558,1714509056216,-335.463724,0.00034521,2]
[325053560,1714509056225,-150.0,0.00034697,2]
[325053562,1714509056235,-172.236378,0.00034735,2]
[325053564,1714509056244,-500.0,0.00034793,7]
[325053566,1714509056253,-500.0,0.00034793,7]
[325053568,1714509056263,-533.62,0.00034793,7]
[325053570,1714509056272,-500.0,0.00034793,7]
[325053572,1714509056281,-500.0,0.00034793,7]
[325053574,1714509056290,-500.0,0.00034793,7]
[325053576,1714509056299,-500.0,0.00034793,7]
[325053578,1714509056309,-500.0,0.00034793,7]
[325053580,1714509056318,-500.0,0.00034793,7]
[325053582,1714509056327,-500.0,0.00034793,7]
[325053584,1714509056336,-813.87,0.00034793,7]
[325053586,1714509056348,-500.0,0.00034793,7]
[325053588,1714509056357,-623.9,0.00034793,7]
[325053590,1714509056366,-500.0,0.00034793,7]
[325053592,1714509056375,-1676.72,0.00034793,7]
[325053594,1714509056385,-500.0,0.00034793,7]
[325053596,1714509056394,-500.0,0.00034793,7]
[325053598,1714509056403,-569.25,0.00034793,7]
[325053600,1714509056412,-500.0,0.00034793,7]
[325053602,1714509056422,-500.0,0.00034793,7]
[325053604,1714509056431,-971.02,0.00034793,7]
[325053606,1714509056440,-500.0,0.00034793,7]
[325053608,1714509056451,-500.0,0.00034793,7]
[325053610,1714509056461,-500.0,0.00034793,7]
[325053612,1714509056470,-317.41592498,0.00034793,7]
[325053614,1714509056478,-1052.71,0.00034793,46]
[325053616,1714509056487,-500.0,0.00034793,7]
[325053617,1714509056496,-509.09,0.00034794,7]
[325053619,1714509056506,-500.0,0.00034794,7]
[325053622,1714509056516,-500.0,0.00034794,7]
[325053623,1714509056525,-500.0,0.00034794,7]
[325053625,1714509056534,-500.0,0.00034794,7]
[325053627,1714509056544,-600.49,0.00034794,7]
[325053629,1714509056554,-541.66,0.00034794,7]
[325053631,1714509056563,-542.53,0.00034794,7]
[325053633,1714509056572,-500.0,0.00034794,7]
[325053635,1714509056582,-500.0,0.00034794,7]
[325053637,1714509056591,-500.0,0.00034794,7]
[325053639,1714509056600,-611.23,0.00034794,7]
[325053641,1714509056609,-500.0,0.00034794,7]
[325053643,1714509056619,-500.0,0.00034794,7]
[325053645,1714509056628,-500.0,0.00034794,7]
[325053655,1714509056637,-195.10585035,0.00034794,7]
[325053657,1714509056720,-500.0,0.00034794,7]
[325053659,1714509056730,-500.0,0.00034794,7]
[325053661,1714509056739,-500.0,0.00034794,7]
[325053663,1714509056748,-500.0,0.00034794,7]
[325053665,1714509056757,-500.0,0.00034794,7]
[325053667,1714509056767,-576.73,0.00034794,7]
[325053669,1714509056776,-542.59,0.00034794,7]
[325053671,1714509056786,-500.0,0.00034794,7]
[325053673,1714509056795,-635.68,0.00034794,7]
[325053675,1714509056804,-500.0,0.00034794,7]
[325053677,1714509056813,-500.0,0.00034794,7]
[325053679,1714509056822,-500.0,0.00034794,7]
[325053681,1714509056832,-500.0,0.00034794,7]
[325053683,1714509056841,-500.0,0.00034794,7]
[325053685,1714509056849,-500.0,0.00034794,7]
[325053687,1714509056859,-500.0,0.00034794,7]
[325053689,1714509056869,-500.0,0.00034794,7]
[325053691,1714509056878,-500.0,0.00034794,7]
[325053693,1714509056888,-500.0,0.00034794,7]
[325053695,1714509056897,-855.49,0.00034794,7]
[325053697,1714509056908,-500.0,0.00034794,7]
[325053699,1714509056919,-500.0,0.00034794,7]
[325053701,1714509056928,-512.19,0.00034794,7]
[325053703,1714509056937,-500.0,0.00034794,7]
[325053705,1714509056947,-500.0,0.00034794,7]
[325053707,1714509056956,-500.0,0.00034794,7]
[325053709,1714509056968,-589.1,0.00034794,7]
[325053711,1714509056978,-500.0,0.00034794,7]
[325053713,1714509056987,-500.0,0.00034794,7]
[325053715,1714509056996,-652.83,0.00034794,7]
[325053717,1714509057006,-500.0,0.00034794,7]
[325053719,1714509057015,-500.0,0.00034794,7]
[325053721,1714509057024,-557.78,0.00034794,7]
[325053723,1714509057034,-500.0,0.00034794,7]
[325053725,1714509057043,-502.04,0.00034794,7]
[325053727,1714509057052,-500.0,0.00034794,7]
[325053729,1714509057061,-500.0,0.00034794,7]
[325053731,1714509057071,-541.66,0.00034794,7]
[325053733,1714509057080,-500.0,0.00034794,7]
[325053735,1714509057089,-500.0,0.00034794,7]
[325053737,1714509057098,-500.0,0.00034794,7]
[325053739,1714509057107,-500.0,0.00034794,7]
[325053741,1714509057117,-500.0,0.00034794,7]
[325053743,1714509057125,-1568.09,0.00034794,7]
[325053745,1714509057135,-500.0,0.00034794,7]
[325053747,1714509057143,-612.0,0.0003491,14]
[325053749,1714509057152,-212.54437456,0.00034999,4]
[325053751,1714509057162,-209.26059467,0.00035,15]
[325053753,1714509057171,-729.7450776,0.00035,4]
[325053755,1714509057180,-1025.04442129,0.00035,2]
[325053757,1714509057189,-5916.15000564,0.00035,4]
[325053759,1714509057198,-447.14590358,0.00035,10]
[325053761,1714509057207,-386.34634881,0.00035,4]
[325053763,1714509057216,-500.0,0.00035066,14]
[325053765,1714509057225,-3385.25206369,0.00035067,2]
[325053767,1714509057234,-500.0,0.00035067,7]
[325053768,1714509057244,-500.0,0.00035067,7]
[325053771,1714509057253,-533.62,0.00035067,7]
[325053773,1714509057263,-500.0,0.00035067,7]
[325053775,1714509057273,-500.0,0.00035067,7]
[325053776,1714509057283,-500.0,0.00035067,7]
[325053778,1714509057292,-500.0,0.00035067,7]
[325053780,1714509057302,-500.0,0.00035067,7]
[325053782,1714509057312,-500.0,0.00035067,7]
[325053784,1714509057321,-500.0,0.00035067,7]
[325053786,1714509057330,-813.87,0.00035067,7]
[325053788,1714509057340,-500.0,0.00035067,7]
[325053790,1714509057353,-623.9,0.00035067,7]
[325053792,1714509057362,-500.0,0.00035067,7]
[325053794,1714509057371,-1676.72,0.00035067,7]
[325053796,1714509057380,-500.0,0.00035067,7]
[325053798,1714509057391,-500.0,0.00035067,7]
[325053800,1714509057401,-569.25,0.00035067,7]
[325053802,1714509057410,-500.0,0.00035067,7]
[325053804,1714509057419,-500.0,0.00035067,7]
[325053806,1714509057430,-971.02,0.00035067,7]
[325053808,1714509057439,-500.0,0.00035067,7]
[325053811,1714509057450,-501.92783458,0.00035067,7]
[325053813,1714509057459,-500.0,0.00035067,7]
[325053815,1714509057468,-1052.71,0.00035067,49]
[325053817,1714509057477,-500.0,0.00035067,7]
[325053819,1714509057487,-509.09,0.00035068,7]
[325053821,1714509057496,-439.5911198,0.00035068,7]
[325053822,1714509057505,-500.0,0.00035068,7]
[325053824,1714509057514,-500.0,0.00035068,7]
[325053826,1714509057523,-600.49,0.00035068,7]
[325053828,1714509057532,-541.66,0.00035068,7]
[325053829,1714509057541,-542.53,0.00035068,7]
[325053830,1714509057550,-500.0,0.00035068,7]
[325053831,1714509057559,-500.0,0.00035068,7]
[325053832,1714509057568,-500.0,0.00035068,7]
[325053833,1714509057577,-611.23,0.00035068,7]
[325053834,1714509057587,-500.0,0.00035068,7]
[325053836,1714509057596,-345.03720873,0.00035068,7]
[325053838,1714509057605,-500.0,0.00035068,7]
[325053840,1714509057615,-500.0,0.00035068,7]
[325053842,1714509057624,-552.90276798,0.00035068,7]
[325053845,1714509057634,-500.0,0.00035068,7]
[325053846,1714509057644,-500.0,0.00035068,7]
[325053849,1714509057654,-500.0,0.00035068,7]
[325053851,1714509057663,-576.73,0.00035068,7]
[325053853,1714509057672,-542.59,0.00035068,7]
[325053855,1714509057681,-500.0,0.00035068,7]
[325053857,1714509057692,-635.68,0.00035068,7]
[325053859,1714509057701,-500.0,0.00035068,7]
[325053860,1714509057710,-500.0,0.00035068,7]
[325053862,1714509057719,-500.0,0.00035068,7]
[325053865,1714509057729,-500.0,0.00035068,7]
[325053867,1714509057739,-500.0,0.00035068,7]
[325053869,1714509057749,-221.97998014,0.00035068,7]
[325053870,1714509057758,-500.0,0.00035068,7]
[325053873,1714509057768,-500.0,0.00035068,7]
[325053875,1714509057778,-500.0,0.00035068,7]
[325053877,1714509057787,-500.0,0.00035068,7]
[325053879,1714509057796,-855.49,0.00035068,7]
[325053881,1714509057806,-500.0,0.00035068,7]
[325053883,1714509057815,-500.0,0.00035068,7]
[325053885,1714509057824,-512.19,0.00035068,7]
[325053886,1714509057833,-500.0,0.00035068,7]
[325053889,1714509057842,-500.0,0.00035068,7]
[325053891,1714509057852,-500.0,0.00035068,7]
[325053893,1714509057861,-589.1,0.00035068,7]
[325053895,1714509057871,-500.0,0.00035068,7]
[325053897,1714509057880,-500.0,0.00035068,7]
[325053899,1714509057889,-652.83,0.00035068,7]
[325053901,1714509057898,-500.0,0.00035068,7]
[325053903,1714509057907,-500.0,0.00035068,7]
[325053905,1714509057917,-557.78,0.00035068,7]
[325053907,1714509057926,-500.0,0.00035068,7]
[325053909,1714509057935,-502.04,0.00035068,7]
[325053911,1714509057944,-500.0,0.00035068,7]
[325053913,1714509057953,-500.0,0.00035068,7]
[325053915,1714509057966,-541.66,0.00035068,7]
[325053917,1714509057975,-500.0,0.00035068,7]
[325053919,1714509057983,-500.0,0.00035068,7]
[325053920,1714509057993,-500.0,0.00035068,7]
[325053922,1714509058002,-500.0,0.00035068,7]
[325053925,1714509058012,-500.0,0.00035068,7]
[325053927,1714509058021,-1568.09,0.00035068,7]
[325053929,1714509058030,-500.0,0.00035068,7]
[325053931,1714509058040,-172.236378,0.00035164,2]
[325053933,1714509058049,-173.782027,0.00035164,2]
[325053935,1714509058058,-956.58057589,0.00035316,2]
[325053937,1714509058069,-500.0,0.00035341,7]
[325053939,1714509058078,-500.0,0.00035341,7]
[325053941,1714509058087,-533.62,0.00035341,7]
[325053950,1714509058165,-231.48087229,0.00035341,7]
[325053952,1714509058174,-500.0,0.00035341,7]
[325053954,1714509058183,-500.0,0.00035341,7]
[325053956,1714509058193,-500.0,0.00035341,7]
[325053958,1714509058202,-500.0,0.00035341,7]
[325053960,1714509058211,-500.0,0.00035341,7]
[325053962,1714509058220,-500.0,0.00035341,7]
[325053964,1714509058229,-813.87,0.00035341,7]
[325053966,1714509058238,-500.0,0.00035341,7]
[325053968,1714509058247,-623.9,0.00035341,7]
[325053970,1714509058256,-500.0,0.00035341,7]
[325053972,1714509058266,-1676.72,0.00035341,7]
[325053974,1714509058276,-500.0,0.00035341,7]
[325053976,1714509058285,-500.0,0.00035341,7]
[325053978,1714509058294,-569.25,0.00035341,7]
[325053981,1714509058304,-500.0,0.00035341,7]
[325053983,1714509058313,-500.0,0.00035341,7]
[325053985,1714509058323,-971.02,0.00035341,7]
[325053987,1714509058333,-500.0,0.00035341,7]
[325053989,1714509058342,-549.93648231,0.00035341,7]
[325053990,1714509058354,-500.0,0.00035341,7]
[325053992,1714509058363,-509.09,0.00035342,7]
[325053994,1714509058372,-500.0,0.00035342,7]
[325053996,1714509058381,-224.28024396,0.00035342,7]
[325053999,1714509058392,-600.49,0.00035342,7]
[325054001,1714509058402,-541.66,0.00035342,7]
[325054003,1714509058411,-542.53,0.00035342,7]
[325054005,1714509058419,-500.0,0.00035342,7]
[325054006,1714509058430,-500.0,0.00035342,7]
[325054009,1714509058439,-500.0,0.00035342,7]
[325054011,1714509058449,-611.23,0.00035342,7]
[325054012,1714509058459,-500.0,0.00035342,7]
[325054014,1714509058467,-500.0,0.00035342,7]
[325054017,1714509058476,-500.0,0.00035342,7]
[325054019,1714509058486,-500.0,0.00035342,7]
[325054021,1714509058495,-500.0,0.00035342,7]
[325054023,1714509058504,-500.0,0.00035342,7]
[325054025,1714509058514,-576.73,0.00035342,7]
[325054027,1714509058523,-542.59,0.00035342,7]
[325054029,1714509058532,-500.0,0.00035342,7]
[325054031,1714509058540,-635.68,0.00035342,7]
[325054032,1714509058550,-500.0,0.00035342,7]
[325054034,1714509058559,-591.7229864,0.00035342,7]
[325054036,1714509058568,-500.0,0.00035342,7]
[325054038,1714509058578,-500.0,0.00035342,7]
[325054041,1714509058588,-500.0,0.00035342,7]
[325054043,1714509058597,-500.0,0.00035342,7]
[325054044,1714509058606,-500.0,0.00035342,7]
[325054047,1714509058616,-500.0,0.00035342,7]
[325054049,1714509058625,-500.0,0.00035342,7]
[325054051,1714509058634,-855.49,0.00035342,7]
[325054053,1714509058644,-500.0,0.00035342,7]
[325054055,1714509058654,-414.05967044,0.00035342,7]
[325054057,1714509058663,-512.19,0.00035342,7]
[325054059,1714509058672,-500.0,0.00035342,7]
[325054061,1714509058681,-500.0,0.00035342,7]
[325054063,1714509058691,-500.0,0.00035342,7]
[325054065,1714509058700,-589.1,0.00035342,7]
[325054067,1714509058710,-500.0,0.00035342,7]
[325054069,1714509058719,-500.0,0.00035342,7]
[325054071,1714509058728,-652.83,0.00035342,7]
[325054073,1714509058737,-500.0,0.00035342,7]
[325054075,1714509058747,-500.0,0.00035342,7]
[325054077,1714509058757,-557.78,0.00035342,7]
[325054079,1714509058768,-500.0,0.00035342,7]
[325054081,1714509058777,-502.04,0.00035342,7]
[325054083,1714509058786,-500.0,0.00035342,7]
[325054085,1714509058795,-500.0,0.00035342,7]
[325054087,1714509058804,-541.66,0.00035342,7]
[325054089,1714509058814,-500.0,0.00035342,7]
[325054091,1714509058822,-152.57367532,0.00035342,7]
[325054093,1714509058831,-500.0,0.00035342,7]
[325054095,1714509058840,-500.0,0.00035342,7]
[325054097,1714509058849,-500.0,0.00035342,7]
[325054099,1714509058859,-1568.09,0.00035342,7]
[325054101,1714509058867,-500.0,0.00035342,7]
[325054103,1714509058876,-1006.0,0.00035558,5]
[325054104,1714509058885,-172.236378,0.00035593,2]
[325054106,1714509058894,-500.0,0.00035615,7]
[325054108,1714509058906,-163.73844022,0.00035615,7]
[325054110,1714509058915,-533.62,0.00035615,7]
[325054112,1714509058924,-492.73900419,0.00035615,7]
[325054114,1714509058933,-500.0,0.00035615,7]
[325054116,1714509058942,-500.0,0.00035615,7]
[325054118,1714509058951,-500.0,0.00035615,7]
[325054120,1714509058960,-500.0,0.00035615,7]
[325054122,1714509058970,-500.0,0.00035615,7]
[325054124,1714509058978,-813.87,0.00035615,7]
[325054126,1714509058987,-500.0,0.00035615,7]
[325054128,1714509058996,-623.9,0.00035615,7]
[325054130,1714509059006,-500.0,0.00035615,7]
[325054132,1714509059015,-1676.72,0.00035615,7]
[325054134,1714509059025,-500.0,0.00035615,7]
[325054137,1714509059035,-500.0,0.00035615,7]
[325054139,1714509059044,-569.25,0.00035615,7]
[325054141,1714509059053,-500.0,0.00035615,7]
[325054143,1714509059062,-500.0,0.00035615,7]
[325054145,1714509059070,-971.02,0.00035615,7]
[325054146,1714509059079,-500.0,0.00035615,7]
[325054149,1714509059088,-500.0,0.00035615,7]
[325054150,1714509059097,-509.09,0.00035616,7]
[325054153,1714509059106,-477.54665271,0.00035616,7]
[325054154,1714509059115,-600.49,0.00035616,7]
[325054157,1714509059124,-541.66,0.00035616,7]
[325054159,1714509059133,-542.53,0.00035616,7]
[325054161,1714509059142,-500.0,0.00035616,7]
[325054162,1714509059151,-500.0,0.00035616,7]
[325054164,1714509059170,-500.0,0.00035616,7]
[325054167,1714509059179,-611.23,0.00035616,7]
[325054169,1714509059189,-180.25148183,0.00035616,7]
[325054171,1714509059198,-500.0,0.00035616,7]
[325054173,1714509059207,-500.0,0.00035616,7]
[325054175,1714509059216,-500.0,0.00035616,7]
[325054177,1714509059225,-500.0,0.00035616,7]
[325054179,1714509059234,-407.42177426,0.00035616,7]
[325054181,1714509059243,-576.73,0.00035616,7]
[325054183,1714509059253,-542.59,0.00035616,7]
[325054184,1714509059262,-500.0,0.00035616,7]
[325054187,1714509059271,-635.68,0.00035616,7]
[325054189,1714509059281,-508.83905917,0.00035616,7]
[325054190,1714509059290,-500.0,0.00035616,7]
[325054193,1714509059300,-207.03502404,0.00035616,7]
[325054195,1714509059310,-500.0,0.00035616,7]
[325054197,1714509059319,-500.0,0.00035616,7]
[325054199,1714509059328,-500.0,0.00035616,7]
[325054200,1714509059338,-500.0,0.00035616,7]
[325054202,1714509059351,-268.55716897,0.00035616,7]
[325054204,1714509059360,-855.49,0.00035616,7]
[325054206,1714509059370,-500.0,0.00035616,7]
[325054208,1714509059380,-512.19,0.00035616,7]
[325054210,1714509059390,-500.0,0.00035616,7]
[325054213,1714509059400,-500.0,0.00035616,7]
[325054214,1714509059414,-500.0,0.00035616,7]
[325054217,1714509059425,-589.1,0.00035616,7]
[325054219,1714509059434,-500.0,0.00035616,7]
[325054227,1714509059507,-500.0,0.00035616,7]
[325054229,1714509059517,-652.83,0.00035616,7]
[325054232,1714509059527,-500.0,0.00035616,7]
[325054234,1714509059536,-500.0,0.00035616,7]
[325054236,1714509059546,-557.78,0.00035616,7]
[325054238,1714509059556,-500.0,0.00035616,7]
[325054240,1714509059565,-502.04,0.00035616,7]
[325054242,1714509059574,-500.0,0.00035616,7]
[325054244,1714509059583,-500.0,0.00035616,7]
[325054246,1714509059592,-541.66,0.00035616,7]
[325054248,1714509059602,-500.0,0.00035616,7]
[325054250,1714509059611,-500.0,0.00035616,7]
[325054252,1714509059620,-500.0,0.00035616,7]
[325054254,1714509059629,-500.0,0.00035616,7]
[325054256,1714509059638,-1568.09,0.00035616,7]
[325054258,1714509059648,-500.0,0.00035616,7]
[325054260,1714509059659,-1060.375523,0.00035616,120]
[325054262,1714509059669,-150.0,0.00035697,2]
[325054264,1714509059678,-612.0,0.00035808,14]
[325054266,1714509059687,-500.0,0.00035889,7]
[325054267,1714509059696,-533.62,0.00035889,7]
[325054270,1714509059705,-377.65714805,0.00035889,7]
[325054272,1714509059715,-500.0,0.00035889,7]
[325054274,1714509059724,-500.0,0.00035889,7]
[325054276,1714509059733,-500.0,0.00035889,7]
[325054278,1714509059743,-500.0,0.00035889,7]
[325054280,1714509059752,-813.87,0.00035889,7]
[325054282,1714509059761,-500.0,0.00035889,7]
[325054284,1714509059770,-623.9,0.00035889,7]
[325054286,1714509059780,-500.0,0.00035889,7]
[325054287,1714509059789,-1676.72,0.00035889,7]
[325054289,1714509059800,-287.39887125,0.00035889,7]
[325054292,1714509059809,-500.0,0.00035889,7]
[325054294,1714509059818,-569.25,0.00035889,7]
[325054296,1714509059827,-500.0,0.00035889,7]
[325054297,1714509059836,-500.0,0.00035889,7]
[325054299,1714509059845,-971.02,0.00035889,7]
[325054302,1714509059854,-500.0,0.00035889,7]
[325054303,1714509059863,-1052.71,0.00035889,52]
[325054306,1714509059873,-500.0,0.00035889,7]
[325054308,1714509059882,-509.09,0.0003589,7]
[325054310,1714509059891,-600.49,0.0003589,7]
[325054312,1714509059900,-541.66,0.0003589,7]
[325054313,1714509059911,-542.53,0.0003589,7]
[325054315,1714509059921,-475.93,0.0003589,7]
[325054318,1714509059930,-500.0,0.0003589,7]
[325054319,1714509059939,-500.0,0.0003589,7]
[325054321,1714509059948,-611.23,0.0003589,7]
[325054324,1714509059958,-500.0,0.0003589,7]
[325054325,1714509059967,-500.0,0.0003589,7]
[325054328,1714509059976,-500.0,0.0003589,7]
[325054330,1714509059985,-500.0,0.0003589,7]
[325054332,1714509059994,-576.73,0.0003589,7]
[325054334,1714509060003,-542.59,0.0003589,7]
[325054335,1714509060013,-500.0,0.0003589,7]
[325054338,1714509060022,-635.68,0.0003589,7]
[325054340,1714509060031,-500.0,0.0003589,7]
[325054342,1714509060041,-500.0,0.0003589,7]
[325054344,1714509060050,-500.0,0.0003589,7]
[325054345,1714509060059,-500.0,0.0003589,7]
[325054348,1714509060069,-500.0,0.0003589,7]
[325054350,1714509060078,-855.49,0.0003589,7]
[325054352,1714509060087,-500.0,0.0003589,7]
[325054354,1714509060096,-512.19,0.0003589,7]
[325054356,1714509060106,-500.0,0.0003589,7]
[325054358,1714509060116,-500.0,0.0003589,7]
[325054360,1714509060125,-500.0,0.0003589,7]
[325054362,1714509060134,-589.1,0.0003589,7]
[325054364,1714509060144,-500.0,0.0003589,7]
[325054366,1714509060153,-500.0,0.0003589,7]
[325054368,1714509060166,-652.83,0.0003589,7]
[325054370,1714509060175,-201.88474769,0.0003589,7]
[325054372,1714509060184,-500.0,0.0003589,7]
[325054374,1714509060193,-557.78,0.0003589,7]
[325054376,1714509060203,-502.04,0.0003589,7]
[325054378,1714509060213,-500.0,0.0003589,7]
[325054380,1714509060222,-500.0,0.0003589,7]
[325054382,1714509060232,-541.66,0.0003589,7]
[325054384,1714509060241,-500.0,0.0003589,7]
[325054386,1714509060251,-500.0,0.0003589,7]
[325054388,1714509060260,-500.0,0.0003589,7]
[325054390,1714509060270,-500.0,0.0003589,7]
[325054392,1714509060279,-1568.09,0.0003589,7]
[325054394,1714509060288,-500.0,0.0003589,7]
[325054396,1714509060297,-172.236378,0.00036022,2]
[325054398,1714509060306,-187.928216,0.00036022,2]
[325054400,1714509060315,-173.782027,0.00036022,2]
[325054402,1714509060325,-500.0,0.00036163,7]
[325054404,1714509060334,-533.62,0.00036163,7]
[325054406,1714509060348,-500.0,0.00036163,7]
[325054408,1714509060357,-500.0,0.00036163,7]
[325054410,1714509060366,-500.0,0.00036163,7]
[325054412,1714509060375,-500.0,0.00036163,7]
[325054414,1714509060385,-813.87,0.00036163,7]
[325054416,1714509060394,-500.0,0.00036163,7]